Workbook

Sheet LSS Project
C4: CHECK LIST
B7: DEFINE | C7: VOC | G7: TRUE
C8: Project charter | G8: TRUE
C9: SIPOC | G9: TRUE
B10: Measure | C10: Value Stream Mapping | G10: TRUE
C11: Control Chart | G11: TRUE
C12: Histogram | G12: TRUE
C13: Process Capability Analysis | G13: TRUE
B14: Analyze | C14: Brain Storming | G14: TRUE
C15: Cause & Effect Diagram | G15: TRUE | J15: =IF(AND(G7:G16,G18:G19,G21:G22)=TRUE,"CONGRATUALATION!!!Training Complete","Training Incomplete: Keep Working!!!") -> CONGRATUALATION!!!Training Complete
C16: Pareto Chart | G16: TRUE
G17: FALSE
B18: Improve | C18: Pick Chart | G18: TRUE
C19: Improved Control Chart | G19: TRUE
B21: Control | C21: Standardize procedure | G21: TRUE
C22: PDCA | G22: TRUE

Sheet Project Charter
C6: Project Name | D6: LSS TRAINING PROGRAM
C8: Group Name | I8: Black Belt | J8: Espen Henrik Johannessen
C10: Department | D10: Industrial Engineering | I10: Team Members | J10: Lars Erik Sørgård
C12: Event Dates | J12: Lasse Olavsen Øien
C14: Project Champion | J14: Espen Hansen
C16: Sponsor | J16: Antonio Fianc
C18: Process Owner | J18: Kristofer Jørgensen
C20: Coach Mentor | J20: Chunyu Kong
C24: Business Case
C28: Problem Statement
C32: SMART Objecticves
C38: Project Scope Information
C43: Key Metric | I43: Operation Definition
C45: Entitlement
C47: Goal
C49: Baseline
C53: New Revenue | I53: Projected Benefit
C55: Cost Redcution
C57: Productivity
C59: Cost/Risk Avoidance
C63: Preliminary Plan | D63: Target Date | E63: Actual Date | I63: Estimated Cost Savings
C64: Start Date
C65: Completion Date
C66: Define
C67: Measure
C68: Analyze
C69: Improve
C70: Control

Sheet Waste
B8: Waste Category | C8: Observation | D8: Occurrance Level | E8: Impact on Process performance
A9: T | B9: Transport | C9: • Movement between functional area | D9: High
C10: • Moving WIP to the next step
C11: • Moving finished goods to delivery
A12: I | B12: Inventory | C12: • Excess raw materials and stocks | D12: High
C13: • Work in process
C14: • Spare parts
A15: M | B15: Motion | C15: • Unnecessary movement | D15: Medium
C16: • Extra movement for reaching for parts and tools
C17: • Too much handling time for inspection
A18: W | B18: Waiting | C18: • Store keeper waiting for bottles to arrive | D18: Medium
C19: • Machines waiting to start
C20: • Workers waiting to work
A21: O | B21: Over-processing | C21: • Too much time spend on washing | D21: High
C22: • Slow filling process
C23: • Long inspecting time
A24: O | B24: Over-production | C24: • Batch size production | D24: High
C25: • Make to stock
C26: • Economic order quantity lot sizes
A27: D | B27: Defects | C27: • Unevenness | D27: Medium
C28: • Leakage
C29: • Cracks
A33: DOWNTIME

Sheet SIPOC

Sheet VSM (1)
C34: 5 | F34: 15 | I34: 20 | L34: 30 | O34: 20 | R34: 15 | U34: 70 | X34: Non Value-added | Z34: =C34+F34+I34+L34+O34+R34+U34 -> 175
X35: Value added | Z35: =D36+G36+J36+M36+P36+S36+V36 -> 61
D36: 2 | G36: 20 | J36: 10 | M36: 5 | P36: 9 | S36: 10 | V36: 5

Sheet VSM (2)
F30: FIFO-First in First Out
C34: 5 | F34: 2 | I34: 2 | L34: 1 | O34: 3
R35: Non Value -added | T35: =C34+F34+I34+L34+O34+R3 -> 13
D36: 2 | G36: 5 | J36: 6 | M36: 4 | P36: 4 | R36: Value-added | T36: =D36+G36+J36+M36+P36 -> 21

Sheet Data
B5: INPUT BOX | X5: Cost per unit
C6: Water Volume | I6: Weight of a bottle | X6: Mean
B7: S.N. | C7: 1st Experiment | E7: 2nd Experiment | G7: 3rd Experiment | I7: 1st Experiment | K7: 2nd Experiment | M7: 3rd Experiment | X7: Standard Deviation
B8: 1 | C8: 14.1 | E8: 15.1 | P8: INPUT BOX | T8: 14.1 | X8: Cp
B9: 2 | C9: 15.6 | E9: 15 | Q9: 1st Experiment | R9: 2nd Experiment | S9: 3rd Experiment | T9: 15.6 | X9: Cpk
B10: 3 | C10: 14.7 | E10: 14.8 | P10: Customer Order | Q10: 20 | R10: 20 | T10: 14.7
B11: 4 | C11: 14.7 | E11: 15.05 | P11: Total Bottles Processed (n) | Q11: =COUNTA(C8:D47) -> 40 | R11: 26 | T11: 14.7
B12: 5 | C12: 14.9 | E12: 15.05 | P12: USL | Q12: 15.3 | R12: 15.3 | T12: 14.9
B13: 6 | C13: 14.9 | E13: 15.15 | P13: LSL | Q13: 14.5 | R13: 14.5 | T13: 14.9
B14: 7 | C14: 14.8 | E14: 15.15 | P14: Number of Defects | Q14: =(COUNTIF(C8:C47,">15.3") + COUNTIF(C8:C47,"<14.5")) -> 14 | R14: =(COUNTIF(E8:E47,">15.3") + COUNTIF(E8:E47,"<14.5")) -> 2 | T14: 14.8
B15: 8 | C15: 15.1 | E15: 15.2 | P15: Work-In-Progress | Q15: 6 | R15: 4 | T15: 15.1
B16: 9 | C16: 14.4 | E16: 14.85 | P16: Takt Time | Q16: 30 | R16: 30 | T16: 14.4
B17: 10 | C17: 15 | E17: 14.8 | P17: Total Lead Time | Q17: 792 | R17: 350 | T17: 15
B18: 11 | C18: 14.9 | E18: 15.05 | T18: 14.9
B19: 12 | C19: 14.4 | E19: 15.15 | T19: 14.4
B20: 13 | C20: 15.65 | E20: 15.15 | T20: 15.65
B21: 14 | C21: 14.6 | E21: 15.3 | T21: 14.6
B22: 15 | C22: 15.4 | E22: 15 | Q22: 1st Experiment | R22: 2nd Experiment | S22: 3rd Experiment | T22: 15.4
B23: 16 | C23: 15 | E23: 15.1 | O23: 1 | P23: Customer Order | Q23: =Q10 -> 20 | R23: =R10 -> 20 | T23: 15
B24: 17 | C24: 15.4 | E24: 15 | O24: 2 | P24: Total Bottles Processed | Q24: =Q11 -> 40 | R24: =R11 -> 26 | T24: 15.4
B25: 18 | C25: 15.3 | E25: 15 | O25: 3 | P25: Number of Defects | Q25: =Q14 -> 14 | R25: =R14 -> 2 | T25: 15.3
B26: 19 | C26: 14.9 | E26: 14.75 | O26: 4 | P26: Total Lead Time [sec] | Q26: =Q17 -> 792 | R26: =R17 -> 350 | T26: 14.9
B27: 20 | C27: 14.2 | E27: 14.9 | O27: 5 | P27: Work-In-Progress | Q27: =1 -> 1 | R27: =1 -> 1 | T27: 14.2
B28: 21 | C28: 14.9 | E28: 15.25 | O28: 6 | P28: Yield | Q28: =Q23/Q24 -> 0.5 | R28: =R23/R24 -> 0.7692307692 | T28: 14.9
B29: 22 | C29: 14.8 | E29: 15 | O29: 7 | P29: Takt Time (Given) | Q29: =Q16 -> 30 | R29: =R16 -> 30 | T29: 14.8
B30: 23 | C30: 14.7 | E30: 15.05 | O30: 8 | P30: Available Time | Q30: =Q29*Q23 -> 600 | R30: =R29*R23 -> 600 | T30: 14.7
B31: 24 | C31: 14.5 | E31: 14.95 | O31: 9 | P31: Non-Value Time | Q31: =Q26-Q30 -> 192 | R31: 0 | T31: 14.5
B32: 25 | C32: 14.7 | E32: 15.35 | O32: 10 | P32: Time Penalty Cost | Q32: =Q31*100 -> 19200 | R32: =R31*100 -> 0 | T32: 14.7
B33: 26 | C33: 15.2 | E33: 15.35 | O33: 11 | P33: Work-In-Progress Cost | Q33: =Q27*500 -> 500 | R33: =R27*500 -> 500 | T33: 15.2
B34: 27 | C34: 14.4 | O34: 12 | P34: Rework Cost | Q34: =Q25*1500 -> 21000 | R34: =R25*1500 -> 3000 | T34: 14.4
B35: 28 | C35: 14.1 | O35: 13 | P35: Warranty Cost | Q35: =Q23*3000 -> 60000 | R35: =R23*3000 -> 60000 | T35: 14.1
B36: 29 | C36: 15.2 | O36: 14 | P36: Cost of Poor Quality | Q36: =Q34+Q35 -> 81000 | R36: =R34+R35 -> 63000 | T36: 15.2
B37: 30 | C37: 14.3 | O37: 15 | P37: Penalty Cost | Q37: 0 | R37: 0 | T37: 14.3
B38: 31 | C38: 15 | O38: 16 | P38: Total Cost | Q38: =Q32+Q33+Q36+Q37 -> 100700 | R38: =R32+R33+R36+R37 -> 63500 | T38: 15
B39: 32 | C39: 15 | O39: 17 | P39: Cost Per Unit | Q39: =Q38/Q23 -> 5035 | R39: =R38/R23 -> 3175 | T39: 15
B40: 33 | C40: 14.4 | T40: 14.4
B41: 34 | C41: 15.2 | T41: 15.2
B42: 35 | C42: 14.2 | T42: 14.2
B43: 36 | C43: 14.5 | T43: 14.5
B44: 37 | C44: 15.2 | T44: 15.2
B45: 38 | C45: 15.2 | T45: 15.2
B46: 39 | C46: 14.3 | T46: 14.3
B47: 40 | C47: 15.2 | T47: 15.2

Sheet Statistics
A1: n | B1: 40 | TD1: hi
A2: USL | B2: 15.3
A3: LSL | B3: 14.5 | X3: RESULT
A4: Mean | B4: =AVERAGE(I5:I44) -> 14.82375 | G4: S.N. | H4: Data | I4: Sorted | J4: Rank | K4: Normal Distribution | L4: Difference | M4: Mean | N4: UCLx | O4: LCLx | P4: USL | Q4: LSL | R4: Rmean | S4: UCLR | T4: LCLR | U4: x̅+3σ | V4: x̅-3σ | Y4: 1st Experiment | Z4: 2nd Experiment | AA4: 3rd Experiment
A5: Standard Deviation | B5: =_xlfn.STDEV.S(I5:I44) -> 0.4135505271 | G5: 1 | H5: 14.1 | I5: 14.1 | J5: =G5/($B$1+1) -> 0.0243902439 | K5: =_xlfn.NORM.DIST(I5,$B$4,$B$5,FALSE) -> 0.2085935323 | M5: =$B$4 -> 14.82375 | N5: =$B$7 -> 14.92946795 | O5: =$B$8 -> 14.71803205 | P5: =$B$2 -> 15.3 | Q5: =$B$3 -> 14.5 | R5: =$B$6 -> 0.03974358974 | S5: =$B$9 -> 0.1299615385 | T5: =$B$10 -> 0 | U5: =$B$4+3*$B$5 -> 16.06440158 | V5: =$B$4-3*$B$5 -> 13.58309842 | X5: Cost per unit | Y5: 5035 | Z5: 3175
A6: Rmean | B6: =AVERAGE(L6:L44) -> 0.03974358974 | G6: 2 | H6: 15.6 | I6: 14.1 | J6: =G6/($B$1+1) -> 0.0487804878 | K6: =_xlfn.NORM.DIST(I6,$B$4,$B$5,FALSE) -> 0.2085935323 | L6: =ABS(I5-I6) -> 0 | M6: 14.82375 | N6: 14.92946795 | O6: 14.71803205 | P6: 15.3 | Q6: 14.5 | R6: 0.03974358974 | S6: 0.1299615385 | T6: 0 | U6: =$B$4+3*$B$5 -> 16.06440158 | V6: =$B$4-3*$B$5 -> 13.58309842 | X6: Mean | Y6: 14.82375 | Z6: 15.05769231
A7: UCLx | B7: =B4+D7*B6 -> 14.92946795 | C7: E2 | D7: 2.66 | G7: 3 | H7: 14.7 | I7: 14.2 | J7: 0.07317073171 | K7: 0.3093081425 | L7: =ABS(I6-I7) -> 0.1 | M7: 14.82375 | N7: 14.92946795 | O7: 14.71803205 | P7: 15.3 | Q7: 14.5 | R7: 0.03974358974 | S7: 0.1299615385 | T7: 0 | U7: 16.06440158 | V7: 13.58309842 | X7: Standard Deviation | Y7: 0.4135505271 | Z7: 0.1610542193
A8: LCLx | B8: =B4-D8*B6 -> 14.71803205 | C8: E2 | D8: 2.66 | G8: 4 | H8: 14.7 | I8: 14.2 | J8: 0.09756097561 | K8: 0.3093081425 | L8: 0 | M8: 14.82375 | N8: 14.92946795 | O8: 14.71803205 | P8: 15.3 | Q8: 14.5 | R8: 0.03974358974 | S8: 0.1299615385 | T8: 0 | U8: 16.06440158 | V8: 13.58309842 | X8: Cp | Y8: 0.3224112281 | Z8: 0.8278785489
A9: UCLR | B9: =B6*D9 -> 0.1299615385 | C9: D4 | D9: 3.27 | G9: 5 | H9: 14.9 | I9: 14.3 | J9: 0.1219512195 | K9: 0.4326015776 | L9: 0.1 | M9: 14.82375 | N9: 14.92946795 | O9: 14.71803205 | P9: 15.3 | Q9: 14.5 | R9: 0.03974358974 | S9: 0.1299615385 | T9: 0 | U9: 16.06440158 | V9: 13.58309842 | X9: Cpk | Y9: 0.2609515878 | Z9: 0.5015033518
A10: LCLR | B10: =D10*B6 -> 0 | C10: D3 | D10: 0 | G10: 6 | H10: 14.9 | I10: 14.3 | J10: 0.1463414634 | K10: 0.4326015776 | L10: 0 | M10: 14.82375 | N10: 14.92946795 | O10: 14.71803205 | P10: 15.3 | Q10: 14.5 | R10: 0.03974358974 | S10: 0.1299615385 | T10: 0 | U10: 16.06440158 | V10: 13.58309842
G11: 7 | H11: 14.8 | I11: 14.4 | J11: 0.1707317073 | K11: 0.5706779291 | L11: 0.1 | M11: 14.82375 | N11: 14.92946795 | O11: 14.71803205 | P11: 15.3 | Q11: 14.5 | R11: 0.03974358974 | S11: 0.1299615385 | T11: 0 | U11: 16.06440158 | V11: 13.58309842
A12: Defects | B12: 14 | G12: 8 | H12: 15.1 | I12: 14.4 | J12: 0.1951219512 | K12: 0.5706779291 | L12: 0 | M12: 14.82375 | N12: 14.92946795 | O12: 14.71803205 | P12: 15.3 | Q12: 14.5 | R12: 0.03974358974 | S12: 0.1299615385 | T12: 0 | U12: 16.06440158 | V12: 13.58309842 | X12: For Charts Scroll Down!!!
G13: 9 | H13: 14.4 | I13: 14.4 | J13: 0.2195121951 | K13: 0.5706779291 | L13: 0 | M13: 14.82375 | N13: 14.92946795 | O13: 14.71803205 | P13: 15.3 | Q13: 14.5 | R13: 0.03974358974 | S13: 0.1299615385 | T13: 0 | U13: 16.06440158 | V13: 13.58309842
A14: Cp | B14: =(B2-B3)/(6*B5) -> 0.3224112281 | G14: 10 | H14: 15 | I14: 14.4 | J14: 0.243902439 | K14: 0.5706779291 | L14: 0 | M14: 14.82375 | N14: 14.92946795 | O14: 14.71803205 | P14: 15.3 | Q14: 14.5 | R14: 0.03974358974 | S14: 0.1299615385 | T14: 0 | U14: 16.06440158 | V14: 13.58309842
A15: Cpk | B15: =MIN((B2-B4)/(3*B5),(B4-B3)/(3*B5)) -> 0.2609515878 | G15: 11 | H15: 14.9 | I15: 14.5 | J15: 0.2682926829 | K15: 0.7100685636 | L15: 0.1 | M15: 14.82375 | N15: 14.92946795 | O15: 14.71803205 | P15: 15.3 | Q15: 14.5 | R15: 0.03974358974 | S15: 0.1299615385 | T15: 0 | U15: 16.06440158 | V15: 13.58309842
G16: 12 | H16: 14.4 | I16: 14.5 | J16: 0.2926829268 | K16: 0.7100685636 | L16: 0 | M16: 14.82375 | N16: 14.92946795 | O16: 14.71803205 | P16: 15.3 | Q16: 14.5 | R16: 0.03974358974 | S16: 0.1299615385 | T16: 0 | U16: 16.06440158 | V16: 13.58309842
A17: z(USL) | B17: =(B2-B4)/B5 -> 1.151612605 | G17: 13 | H17: 15.65 | I17: 14.6 | J17: 0.3170731707 | K17: 0.8333275247 | L17: 0.1 | M17: 14.82375 | N17: 14.92946795 | O17: 14.71803205 | P17: 15.3 | Q17: 14.5 | R17: 0.03974358974 | S17: 0.1299615385 | T17: 0 | U17: 16.06440158 | V17: 13.58309842
A18: z(LSL) | B18: =(B4-B3)/B5 -> 0.7828547633 | G18: 14 | H18: 14.6 | I18: 14.7 | J18: 0.3414634146 | K18: 0.9224384542 | L18: 0.1 | M18: 14.82375 | N18: 14.92946795 | O18: 14.71803205 | P18: 15.3 | Q18: 14.5 | R18: 0.03974358974 | S18: 0.1299615385 | T18: 0 | U18: 16.06440158 | V18: 13.58309842
G19: 15 | H19: 15.4 | I19: 14.7 | J19: 0.3658536585 | K19: 0.9224384542 | L19: 0 | M19: 14.82375 | N19: 14.92946795 | O19: 14.71803205 | P19: 15.3 | Q19: 14.5 | R19: 0.03974358974 | S19: 0.1299615385 | T19: 0 | U19: 16.06440158 | V19: 13.58309842
A20: P1 | B20: =1-_xlfn.NORM.S.DIST(B17,TRUE) -> 0.1247401496 | G20: 16 | H20: 15 | I20: 14.7 | J20: 0.3902439024 | K20: 0.9224384542 | L20: 0 | M20: 14.82375 | N20: 14.92946795 | O20: 14.71803205 | P20: 15.3 | Q20: 14.5 | R20: 0.03974358974 | S20: 0.1299615385 | T20: 0 | U20: 16.06440158 | V20: 13.58309842
A21: P2 | B21: =_xlfn.NORM.S.DIST(B18,TRUE) -> 0.7831437978 | G21: 17 | H21: 15.4 | I21: 14.7 | J21: 0.4146341463 | K21: 0.9224384542 | L21: 0 | M21: 14.82375 | N21: 14.92946795 | O21: 14.71803205 | P21: 15.3 | Q21: 14.5 | R21: 0.03974358974 | S21: 0.1299615385 | T21: 0 | U21: 16.06440158 | V21: 13.58309842
A22: Ptotal | B22: =SUM(B20:B21) -> 0.9078839473 | G22: 18 | H22: 15.3 | I22: 14.8 | J22: 0.4390243902 | K22: 0.9630865184 | L22: 0.1 | M22: 14.82375 | N22: 14.92946795 | O22: 14.71803205 | P22: 15.3 | Q22: 14.5 | R22: 0.03974358974 | S22: 0.1299615385 | T22: 0 | U22: 16.06440158 | V22: 13.58309842
A23: DPMO | B23: =ROUND(B22*10^6,) -> 907884 | G23: 19 | H23: 14.9 | I23: 14.8 | J23: 0.4634146341 | K23: 0.9630865184 | L23: 0 | M23: 14.82375 | N23: 14.92946795 | O23: 14.71803205 | P23: 15.3 | Q23: 14.5 | R23: 0.03974358974 | S23: 0.1299615385 | T23: 0 | U23: 16.06440158 | V23: 13.58309842
A24: Histogram | G24: 20 | H24: 14.2 | I24: 14.9 | J24: 0.487804878 | K24: 0.9484172388 | L24: 0.1 | M24: 14.82375 | N24: 14.92946795 | O24: 14.71803205 | P24: 15.3 | Q24: 14.5 | R24: 0.03974358974 | S24: 0.1299615385 | T24: 0 | U24: 16.06440158 | V24: 13.58309842
A25: Range | B25: =MAX(I5:I44)-MIN(I5:I44) -> 1.55 | G25: 21 | H25: 14.9 | I25: 14.9 | J25: 0.512195122 | K25: 0.9484172388 | L25: 0 | M25: 14.82375 | N25: 14.92946795 | O25: 14.71803205 | P25: 15.3 | Q25: 14.5 | R25: 0.03974358974 | S25: 0.1299615385 | T25: 0 | U25: 16.06440158 | V25: 13.58309842
A26: k | B26: =SQRT($B$1) -> 6.32455532 | G26: 22 | H26: 14.8 | I26: 14.9 | J26: 0.5365853659 | K26: 0.9484172388 | L26: 0 | M26: 14.82375 | N26: 14.92946795 | O26: 14.71803205 | P26: 15.3 | Q26: 14.5 | R26: 0.03974358974 | S26: 0.1299615385 | T26: 0 | U26: 16.06440158 | V26: 13.58309842
A27: k | B27: =ROUND(B26+0.5,0) -> 7 | G27: 23 | H27: 14.7 | I27: 14.9 | J27: 0.5609756098 | K27: 0.9484172388 | L27: 0 | M27: 14.82375 | N27: 14.92946795 | O27: 14.71803205 | P27: 15.3 | Q27: 14.5 | R27: 0.03974358974 | S27: 0.1299615385 | T27: 0 | U27: 16.06440158 | V27: 13.58309842
A28: class width | B28: =B25/B26 -> 0.2450765187 | G28: 24 | H28: 14.5 | I28: 14.9 | J28: 0.5853658537 | K28: 0.9484172388 | L28: 0 | M28: 14.82375 | N28: 14.92946795 | O28: 14.71803205 | P28: 15.3 | Q28: 14.5 | R28: 0.03974358974 | S28: 0.1299615385 | T28: 0 | U28: 16.06440158 | V28: 13.58309842
G29: 25 | H29: 14.7 | I29: 15 | J29: 0.6097560976 | K29: 0.880926768 | L29: 0.1 | M29: 14.82375 | N29: 14.92946795 | O29: 14.71803205 | P29: 15.3 | Q29: 14.5 | R29: 0.03974358974 | S29: 0.1299615385 | T29: 0 | U29: 16.06440158 | V29: 13.58309842
G30: 26 | H30: 15.2 | I30: 15 | J30: 0.6341463415 | K30: 0.880926768 | L30: 0 | M30: 14.82375 | N30: 14.92946795 | O30: 14.71803205 | P30: 15.3 | Q30: 14.5 | R30: 0.03974358974 | S30: 0.1299615385 | T30: 0 | U30: 16.06440158 | V30: 13.58309842
A31: Class | B31: Bin | D31: Frequency | G31: 27 | H31: 14.4 | I31: 15 | J31: 0.6585365854 | K31: 0.880926768 | L31: 0 | M31: 14.82375 | N31: 14.92946795 | O31: 14.71803205 | P31: 15.3 | Q31: 14.5 | R31: 0.03974358974 | S31: 0.1299615385 | T31: 0 | U31: 16.06440158 | V31: 13.58309842
A32: 1 | B32: =I5+$B$28 -> 14.34507652 | C32: =COUNTIF($I$5:$I$45,"<="&B32) -> 6 | D32: =C32 -> 6 | G32: 28 | H32: 14.1 | I32: 15 | J32: 0.6829268293 | K32: 0.880926768 | L32: 0 | M32: 14.82375 | N32: 14.92946795 | O32: 14.71803205 | P32: 15.3 | Q32: 14.5 | R32: 0.03974358974 | S32: 0.1299615385 | T32: 0 | U32: 16.06440158 | V32: 13.58309842
A33: 2 | B33: =B32+$B$28 -> 14.59015304 | C33: 12 | D33: =C33-C32 -> 6 | G33: 29 | H33: 15.2 | I33: 15.1 | J33: 0.7073170732 | K33: 0.7717673575 | L33: 0.1 | M33: 14.82375 | N33: 14.92946795 | O33: 14.71803205 | P33: 15.3 | Q33: 14.5 | R33: 0.03974358974 | S33: 0.1299615385 | T33: 0 | U33: 16.06440158 | V33: 13.58309842
A34: 3 | B34: 14.83522956 | C34: 19 | D34: 7 | G34: 30 | H34: 14.3 | I34: 15.2 | J34: 0.7317073171 | K34: 0.6377335081 | L34: 0.1 | M34: 14.82375 | N34: 14.92946795 | O34: 14.71803205 | P34: 15.3 | Q34: 14.5 | R34: 0.03974358974 | S34: 0.1299615385 | T34: 0 | U34: 16.06440158 | V34: 13.58309842
A35: 4 | B35: 15.08030607 | C35: 28 | D35: 9 | G35: 31 | H35: 15 | I35: 15.2 | J35: 0.756097561 | K35: 0.6377335081 | L35: 0 | M35: 14.82375 | N35: 14.92946795 | O35: 14.71803205 | P35: 15.3 | Q35: 14.5 | R35: 0.03974358974 | S35: 0.1299615385 | T35: 0 | U35: 16.06440158 | V35: 13.58309842
A36: 5 | B36: 15.32538259 | C36: 36 | D36: 8 | G36: 32 | H36: 15 | I36: 15.2 | J36: 0.7804878049 | K36: 0.6377335081 | L36: 0 | M36: 14.82375 | N36: 14.92946795 | O36: 14.71803205 | P36: 15.3 | Q36: 14.5 | R36: 0.03974358974 | S36: 0.1299615385 | T36: 0 | U36: 16.06440158 | V36: 13.58309842
A37: 6 | B37: 15.57045911 | C37: 38 | D37: 2 | G37: 33 | H37: 14.4 | I37: 15.2 | J37: 0.8048780488 | K37: 0.6377335081 | L37: 0 | M37: 14.82375 | N37: 14.92946795 | O37: 14.71803205 | P37: 15.3 | Q37: 14.5 | R37: 0.03974358974 | S37: 0.1299615385 | T37: 0 | U37: 16.06440158 | V37: 13.58309842
A38: 7 | B38: 15.81553563 | C38: 40 | D38: 2 | G38: 34 | H38: 15.2 | I38: 15.2 | J38: 0.8292682927 | K38: 0.6377335081 | L38: 0 | M38: 14.82375 | N38: 14.92946795 | O38: 14.71803205 | P38: 15.3 | Q38: 14.5 | R38: 0.03974358974 | S38: 0.1299615385 | T38: 0 | U38: 16.06440158 | V38: 13.58309842
G39: 35 | H39: 14.2 | I39: 15.2 | J39: 0.8536585366 | K39: 0.6377335081 | L39: 0 | M39: 14.82375 | N39: 14.92946795 | O39: 14.71803205 | P39: 15.3 | Q39: 14.5 | R39: 0.03974358974 | S39: 0.1299615385 | T39: 0 | U39: 16.06440158 | V39: 13.58309842
G40: 36 | H40: 14.5 | I40: 15.3 | J40: 0.8780487805 | K40: 0.4970479635 | L40: 0.1 | M40: 14.82375 | N40: 14.92946795 | O40: 14.71803205 | P40: 15.3 | Q40: 14.5 | R40: 0.03974358974 | S40: 0.1299615385 | T40: 0 | U40: 16.06440158 | V40: 13.58309842
A41: Skewness | B41: =SKEW(H5:H44) -> -0.01322065299 | G41: 37 | H41: 15.2 | I41: 15.4 | J41: 0.9024390244 | K41: 0.365395835 | L41: 0.1 | M41: 14.82375 | N41: 14.92946795 | O41: 14.71803205 | P41: 15.3 | Q41: 14.5 | R41: 0.03974358974 | S41: 0.1299615385 | T41: 0 | U41: 16.06440158 | V41: 13.58309842
A42: Kurtosis | B42: =KURT(H5:H44) -> -0.8039530133 | G42: 38 | H42: 15.2 | I42: 15.4 | J42: 0.9268292683 | K42: 0.365395835 | L42: 0 | M42: 14.82375 | N42: 14.92946795 | O42: 14.71803205 | P42: 15.3 | Q42: 14.5 | R42: 0.03974358974 | S42: 0.1299615385 | T42: 0 | U42: 16.06440158 | V42: 13.58309842
G43: 39 | H43: 14.3 | I43: 15.6 | J43: 0.9512195122 | K43: 0.1656963247 | L43: 0.2 | M43: 14.82375 | N43: 14.92946795 | O43: 14.71803205 | P43: 15.3 | Q43: 14.5 | R43: 0.03974358974 | S43: 0.1299615385 | T43: 0 | U43: 16.06440158 | V43: 13.58309842
G44: 40 | H44: 15.2 | I44: 15.65 | J44: 0.9756097561 | K44: 0.1310928758 | L44: 0.05 | M44: 14.82375 | N44: 14.92946795 | O44: 14.71803205 | P44: 15.3 | Q44: 14.5 | R44: 0.03974358974 | S44: 0.1299615385 | T44: 0 | U44: 16.06440158 | V44: 13.58309842
Z54: ``

Sheet Fishbone Diagram
X5: hu
B6: Cause & Effect Diagram (Fishbone Diagram)
B8: The Problem | D8: Too many defect bottles
T9: 1. Measurements | U9: Experience of an operator | Y9: =IFERROR(INDEX(U$9:U$42,_xlfn.AGGREGATE(15,6,(ROW(U$9:U$42)-ROW(U$9)+1)/(U$9:U$42<>""),ROWS(X9:X$9))),"") -> Experience of an operator
U10: Simple measuring tool | Y10: =IFERROR(INDEX(U$9:U$42,_xlfn.AGGREGATE(15,6,(ROW(U$9:U$42)-ROW(U$9)+1)/(U$9:U$42<>""),ROWS(X$9:X10))),"") -> Simple measuring tool
A11: INPUT BOX | B11: 1. Measurements | F11: 2. Manpower | J11: 3. Materials | U11: Inaccurate measuring caliber | Y11: =IFERROR(INDEX(U$9:U$42,_xlfn.AGGREGATE(15,6,(ROW(U$9:U$42)-ROW(U$9)+1)/(U$9:U$42<>""),ROWS(X$9:X11))),"") -> Inaccurate measuring caliber
B12: Experience of an operator | F12: Measuring error by operator | J12: Unstable & Light plastic bottles | Y12: =IFERROR(INDEX(U$9:U$42,_xlfn.AGGREGATE(15,6,(ROW(U$9:U$42)-ROW(U$9)+1)/(U$9:U$42<>""),ROWS(X$9:X12))),"") -> Measuring error by operator
B13: Simple measuring tool | F13: Improper handling of bottles | J13: Transparency | Y13: =IFERROR(INDEX(U$9:U$42,_xlfn.AGGREGATE(15,6,(ROW(U$9:U$42)-ROW(U$9)+1)/(U$9:U$42<>""),ROWS(X$9:X13))),"") -> Improper handling of bottles
B14: Inaccurate measuring caliber | F14: Over and under filling of liquids | J14: Caps not sealed perfectly | T14: 2. Manpower | U14: Measuring error by operator | Y14: =IFERROR(INDEX(U$9:U$42,_xlfn.AGGREGATE(15,6,(ROW(U$9:U$42)-ROW(U$9)+1)/(U$9:U$42<>""),ROWS(X$9:X14))),"") -> Over and under filling of liquids
U15: Improper handling of bottles | Y15: =IFERROR(INDEX(U$9:U$42,_xlfn.AGGREGATE(15,6,(ROW(U$9:U$42)-ROW(U$9)+1)/(U$9:U$42<>""),ROWS(X$9:X15))),"") -> Unstable & Light plastic bottles
U16: Over and under filling of liquids | Y16: =IFERROR(INDEX(U$9:U$42,_xlfn.AGGREGATE(15,6,(ROW(U$9:U$42)-ROW(U$9)+1)/(U$9:U$42<>""),ROWS(X$9:X16))),"") -> Transparency
B17: 4. Environment | F17: 4. Methods | J17: 6. Machinery | Y17: =IFERROR(INDEX(U$9:U$42,_xlfn.AGGREGATE(15,6,(ROW(U$9:U$42)-ROW(U$9)+1)/(U$9:U$42<>""),ROWS(X$9:X17))),"") -> Caps not sealed perfectly
B18: Work floor is not flexible | F18: Liquid filling | J18: Washing machine | Y18: =IFERROR(INDEX(U$9:U$42,_xlfn.AGGREGATE(15,6,(ROW(U$9:U$42)-ROW(U$9)+1)/(U$9:U$42<>""),ROWS(X$9:X18))),"") -> Work floor is not flexible
B19: Machines cannot be moved | F19: Batch size production | J19: Filling machine | T19: 3. Materials | U19: Unstable & Light plastic bottles | Y19: =IFERROR(INDEX(U$9:U$42,_xlfn.AGGREGATE(15,6,(ROW(U$9:U$42)-ROW(U$9)+1)/(U$9:U$42<>""),ROWS(X$9:X19))),"") -> Machines cannot be moved
B20: Long distance between departments | F20: Labelling and capping | J20: Capping and labelling machine | U20: Transparency | Y20: =IFERROR(INDEX(U$9:U$42,_xlfn.AGGREGATE(15,6,(ROW(U$9:U$42)-ROW(U$9)+1)/(U$9:U$42<>""),ROWS(X$9:X20))),"") -> Long distance between departments
U21: Caps not sealed perfectly | Y21: =IFERROR(INDEX(U$9:U$42,_xlfn.AGGREGATE(15,6,(ROW(U$9:U$42)-ROW(U$9)+1)/(U$9:U$42<>""),ROWS(X$9:X21))),"") -> Liquid filling
Y22: =IFERROR(INDEX(U$9:U$42,_xlfn.AGGREGATE(15,6,(ROW(U$9:U$42)-ROW(U$9)+1)/(U$9:U$42<>""),ROWS(X$9:X22))),"") -> Batch size production
Y23: =IFERROR(INDEX(U$9:U$42,_xlfn.AGGREGATE(15,6,(ROW(U$9:U$42)-ROW(U$9)+1)/(U$9:U$42<>""),ROWS(X$9:X23))),"") -> Labelling and capping
T24: 4. Environment | U24: Work floor is not flexible | Y24: =IFERROR(INDEX(U$9:U$42,_xlfn.AGGREGATE(15,6,(ROW(U$9:U$42)-ROW(U$9)+1)/(U$9:U$42<>""),ROWS(X$9:X24))),"") -> Washing machine
U25: Machines cannot be moved | Y25: =IFERROR(INDEX(U$9:U$42,_xlfn.AGGREGATE(15,6,(ROW(U$9:U$42)-ROW(U$9)+1)/(U$9:U$42<>""),ROWS(X$9:X25))),"") -> Filling machine
U26: Long distance between departments | Y26: =IFERROR(INDEX(U$9:U$42,_xlfn.AGGREGATE(15,6,(ROW(U$9:U$42)-ROW(U$9)+1)/(U$9:U$42<>""),ROWS(X$9:X26))),"") -> Capping and labelling machine
Y27: =IFERROR(INDEX(U$9:U$42,_xlfn.AGGREGATE(15,6,(ROW(U$9:U$42)-ROW(U$9)+1)/(U$9:U$42<>""),ROWS(X$9:X27))),"") -> 
Y28: =IFERROR(INDEX(U$9:U$42,_xlfn.AGGREGATE(15,6,(ROW(U$9:U$42)-ROW(U$9)+1)/(U$9:U$42<>""),ROWS(X$9:X28))),"") -> 
T29: 4. Methods | U29: Liquid filling | Y29: =IFERROR(INDEX(U$9:U$42,_xlfn.AGGREGATE(15,6,(ROW(U$9:U$42)-ROW(U$9)+1)/(U$9:U$42<>""),ROWS(X$9:X29))),"") -> 
U30: Batch size production | Y30: =IFERROR(INDEX(U$9:U$42,_xlfn.AGGREGATE(15,6,(ROW(U$9:U$42)-ROW(U$9)+1)/(U$9:U$42<>""),ROWS(X$9:X30))),"") -> 
U31: Labelling and capping | Y31: =IFERROR(INDEX(U$9:U$42,_xlfn.AGGREGATE(15,6,(ROW(U$9:U$42)-ROW(U$9)+1)/(U$9:U$42<>""),ROWS(X$9:X31))),"") -> 
Y32: =IFERROR(INDEX(U$9:U$42,_xlfn.AGGREGATE(15,6,(ROW(U$9:U$42)-ROW(U$9)+1)/(U$9:U$42<>""),ROWS(X$9:X32))),"") -> 
Y33: =IFERROR(INDEX(U$9:U$42,_xlfn.AGGREGATE(15,6,(ROW(U$9:U$42)-ROW(U$9)+1)/(U$9:U$42<>""),ROWS(X$9:X33))),"") -> 
T34: 6. Machinery | U34: Washing machine | Y34: =IFERROR(INDEX(U$9:U$42,_xlfn.AGGREGATE(15,6,(ROW(U$9:U$42)-ROW(U$9)+1)/(U$9:U$42<>""),ROWS(X$9:X34))),"") -> 
U35: Filling machine | Y35: =IFERROR(INDEX(U$9:U$42,_xlfn.AGGREGATE(15,6,(ROW(U$9:U$42)-ROW(U$9)+1)/(U$9:U$42<>""),ROWS(X$9:X35))),"") -> 
U36: Capping and labelling machine | Y36: =IFERROR(INDEX(U$9:U$42,_xlfn.AGGREGATE(15,6,(ROW(U$9:U$42)-ROW(U$9)+1)/(U$9:U$42<>""),ROWS(X$9:X36))),"") -> 
Y37: =IFERROR(INDEX(U$9:U$42,_xlfn.AGGREGATE(15,6,(ROW(U$9:U$42)-ROW(U$9)+1)/(U$9:U$42<>""),ROWS(X$9:X37))),"") -> 
Y38: =IFERROR(INDEX(U$9:U$42,_xlfn.AGGREGATE(15,6,(ROW(U$9:U$42)-ROW(U$9)+1)/(U$9:U$42<>""),ROWS(X$9:X38))),"") -> 
Y39: =IFERROR(INDEX(U$9:U$42,_xlfn.AGGREGATE(15,6,(ROW(U$9:U$42)-ROW(U$9)+1)/(U$9:U$42<>""),ROWS(X$9:X39))),"") -> 
Y40: =IFERROR(INDEX(U$9:U$42,_xlfn.AGGREGATE(15,6,(ROW(U$9:U$42)-ROW(U$9)+1)/(U$9:U$42<>""),ROWS(X$9:X40))),"") -> 
Y41: =IFERROR(INDEX(U$9:U$42,_xlfn.AGGREGATE(15,6,(ROW(U$9:U$42)-ROW(U$9)+1)/(U$9:U$42<>""),ROWS(X$9:X41))),"") -> 
Y42: =IFERROR(INDEX(U$9:U$42,_xlfn.AGGREGATE(15,6,(ROW(U$9:U$42)-ROW(U$9)+1)/(U$9:U$42<>""),ROWS(X$9:X42))),"") -> 

Sheet Pareto Chart
K5: 0.8
G6: INPUT BOX
B7: S.N | C7: Causes of defects | G7: Weight | H7: Score | I7: Points | J7: Cummulative % | L7: Major Causes | M7: Minor causes | N7: Cutoff %
B8: 2 | C8: ='Fishbone Diagram'!$Y10 -> Simple measuring tool | G8: 5 | H8: 5 | I8: =G8*H8 -> 25 | J8: =SUM(I$8:I8)/SUM($I$8:$I$25) -> 0.1724137931 | L8: =IF(J8<=$K$5,I8,"") -> 25 | M8: =IF(J8<=$K$5,"",I8) ->  | N8: =$K$5 -> 0.8
B9: 3 | C9: ='Fishbone Diagram'!$Y11 -> Inaccurate measuring caliber | G9: 4 | H9: 5 | I9: 20 | J9: =SUM(I$8:I9)/SUM($I$8:$I$25) -> 0.3103448276 | L9: =IF(J9<=$K$5,I9,"") -> 20 | M9: =IF(J9<=$K$5,"",I9) ->  | N9: =$K$5 -> 0.8
B10: 6 | C10: ='Fishbone Diagram'!$Y14 -> Over and under filling of liquids | G10: 5 | H10: 4 | I10: 20 | J10: =SUM(I$8:I10)/SUM($I$8:$I$25) -> 0.4482758621 | L10: 20 | N10: 0.8
B11: 13 | C11: ='Fishbone Diagram'!$Y21 -> Liquid filling | G11: 4 | H11: 4 | I11: 16 | J11: =SUM(I$8:I11)/SUM($I$8:$I$25) -> 0.5586206897 | L11: 16 | N11: 0.8
B12: 9 | C12: ='Fishbone Diagram'!$Y17 -> Caps not sealed perfectly | G12: 5 | H12: 2 | I12: 10 | J12: =SUM(I$8:I12)/SUM($I$8:$I$25) -> 0.6275862069 | L12: 10 | N12: 0.8
B13: 17 | C13: ='Fishbone Diagram'!$Y25 -> Filling machine | G13: 5 | H13: 2 | I13: 10 | J13: =SUM(I$8:I13)/SUM($I$8:$I$25) -> 0.6965517241 | L13: 10 | N13: 0.8
B14: 1 | C14: ='Fishbone Diagram'!$Y9 -> Experience of an operator | G14: 3 | H14: 3 | I14: 9 | J14: =SUM(I$8:I14)/SUM($I$8:$I$25) -> 0.7586206897 | L14: 9 | N14: 0.8
B15: 4 | C15: ='Fishbone Diagram'!$Y12 -> Measuring error by operator | G15: 3 | H15: 2 | I15: 6 | J15: =SUM(I$8:I15)/SUM($I$8:$I$25) -> 0.8 | L15: 6 | N15: 0.8
B16: 5 | C16: ='Fishbone Diagram'!$Y13 -> Improper handling of bottles | G16: 3 | H16: 2 | I16: 6 | J16: =SUM(I$8:I16)/SUM($I$8:$I$25) -> 0.8413793103 | M16: 6 | N16: 0.8
B17: 15 | C17: ='Fishbone Diagram'!$Y23 -> Labelling and capping | G17: 3 | H17: 2 | I17: 6 | J17: =SUM(I$8:I17)/SUM($I$8:$I$25) -> 0.8827586207 | M17: 6 | N17: 0.8
B18: 16 | C18: ='Fishbone Diagram'!$Y24 -> Washing machine | G18: 3 | H18: 2 | I18: 6 | J18: =SUM(I$8:I18)/SUM($I$8:$I$25) -> 0.924137931 | M18: 6 | N18: 0.8
B19: 7 | C19: ='Fishbone Diagram'!$Y15 -> Unstable & Light plastic bottles | G19: 2 | H19: 1 | I19: 2 | J19: =SUM(I$8:I19)/SUM($I$8:$I$25) -> 0.9379310345 | M19: 2 | N19: 0.8
B20: 8 | C20: ='Fishbone Diagram'!$Y16 -> Transparency | G20: 2 | H20: 1 | I20: 2 | J20: =SUM(I$8:I20)/SUM($I$8:$I$25) -> 0.9517241379 | M20: 2 | N20: 0.8 | Q20: =IF(L20="","",C20) -> 
B21: 10 | C21: ='Fishbone Diagram'!$Y18 -> Work floor is not flexible | G21: 2 | H21: 1 | I21: 2 | J21: =SUM(I$8:I21)/SUM($I$8:$I$25) -> 0.9655172414 | M21: 2 | N21: 0.8
B22: 18 | C22: ='Fishbone Diagram'!$Y26 -> Capping and labelling machine | G22: 2 | H22: 1 | I22: 2 | J22: =SUM(I$8:I22)/SUM($I$8:$I$25) -> 0.9793103448 | M22: 2 | N22: 0.8
B23: 11 | C23: ='Fishbone Diagram'!$Y19 -> Machines cannot be moved | G23: 1 | H23: 1 | I23: 1 | J23: =SUM(I$8:I23)/SUM($I$8:$I$25) -> 0.9862068966 | M23: 1 | N23: 0.8
B24: 12 | C24: ='Fishbone Diagram'!$Y20 -> Long distance between departments | G24: 1 | H24: 1 | I24: 1 | J24: =SUM(I$8:I24)/SUM($I$8:$I$25) -> 0.9931034483 | M24: 1 | N24: 0.8
B25: 14 | C25: ='Fishbone Diagram'!$Y22 -> Batch size production | G25: 1 | H25: 1 | I25: 1 | J25: =SUM(I$8:I25)/SUM($I$8:$I$25) -> 1 | M25: 1 | N25: 0.8
B26: 19 | C26: ='Fishbone Diagram'!$Y27 -> 
B27: 20 | C27: ='Fishbone Diagram'!$Y28 -> 
B28: 21 | C28: ='Fishbone Diagram'!$Y29 -> 
B29: 22 | C29: ='Fishbone Diagram'!$Y30 -> 
B30: 23 | C30: ='Fishbone Diagram'!$Y31 -> 
B31: 24 | C31: ='Fishbone Diagram'!$Y32 -> 
B32: 25 | C32: ='Fishbone Diagram'!$Y33 -> 
B33: 26 | C33: ='Fishbone Diagram'!$Y34 -> 
B34: 27 | C34: ='Fishbone Diagram'!$Y35 -> 
B35: 28 | C35: ='Fishbone Diagram'!$Y36 -> 
B36: 29 | C36: ='Fishbone Diagram'!$Y37 -> 
B37: 30 | C37: ='Fishbone Diagram'!$Y38 -> 
B38: 31 | C38: ='Fishbone Diagram'!$Y39 -> 
B39: 32 | C39: ='Fishbone Diagram'!$Y40 -> 
B40: 33 | C40: ='Fishbone Diagram'!$Y41 -> 
B41: 34 | C41: ='Fishbone Diagram'!$Y42 -> 

Sheet SOV matrix
F3: INPUT BOX
N5: E or D | O5: L or H
B6: Source of variation | F6: Action Plan | N6: Severity | O6: PayOff | P6: PICK Category | S6: I | T6: C | U6: K | X6: P | Y6: I | Z6: C | AA6: K
A7: 1 | B7: =IF('Pareto Chart'!L8="","",'Pareto Chart'!C8) -> Simple measuring tool | F7: Train the operator/ Employ experienced worker | N7: E | O7: H | P7: =IF(AND(N7="E",O7="H"),"I",IF(AND(N7="D",O7="H"),"C",IF(AND(N7="E",O7="L"),"P",IF(AND(N7="D",O7="L"),"K","")))) -> I | S7: =IF($P7:$P14="I",$F7,"") -> Train the operator/ Employ experienced worker | T7: =IF($P7:P$14="C",$F7,"") ->  | U7: =IF($P7:$P14="K",$F7,"") ->  | X7: =IFERROR(INDEX(R$7:R$36,_xlfn.AGGREGATE(15,6,(ROW(R$7:R$36)-ROW(R$7)+1)/(R$7:R$36<>""),ROWS(W$7:W7))),"") ->  | Y7: =IFERROR(INDEX(S$7:S$36,_xlfn.AGGREGATE(15,6,(ROW(S$7:S$36)-ROW(S$7)+1)/(S$7:S$36<>""),ROWS(X$7:X7))),"") -> Train the operator/ Employ experienced worker | Z7: =IFERROR(INDEX(T$7:T$36,_xlfn.AGGREGATE(15,6,(ROW(T$7:T$36)-ROW(T$7)+1)/(T$7:T$36<>""),ROWS(Y$7:Y7))),"") -> Use Digital tool | AA7: =IFERROR(INDEX(U$7:U$36,_xlfn.AGGREGATE(15,6,(ROW(U$7:U$36)-ROW(U$7)+1)/(U$7:U$36<>""),ROWS(Z$7:Z7))),"") -> Change bottle type
A8: 2 | B8: =IF('Pareto Chart'!L9="","",'Pareto Chart'!C9) -> Inaccurate measuring caliber | F8: Use Digital tool | N8: D | O8: H | P8: =IF(AND(N8="E",O8="H"),"I",IF(AND(N8="D",O8="H"),"C",IF(AND(N8="E",O8="L"),"P",IF(AND(N8="D",O8="L"),"K","")))) -> C | S8: =IF($P8:$P15="I",$F8,"") ->  | T8: =IF($P8:P$14="C",$F8,"") -> Use Digital tool | U8: =IF($P8:$P15="K",$F8,"") ->  | X8: =IFERROR(INDEX(R$7:R$36,_xlfn.AGGREGATE(15,6,(ROW(R$7:R$36)-ROW(R$7)+1)/(R$7:R$36<>""),ROWS(W$7:W8))),"") ->  | Y8: =IFERROR(INDEX(S$7:S$36,_xlfn.AGGREGATE(15,6,(ROW(S$7:S$36)-ROW(S$7)+1)/(S$7:S$36<>""),ROWS(X$7:X8))),"") -> Be serious in work | Z8: =IFERROR(INDEX(T$7:T$36,_xlfn.AGGREGATE(15,6,(ROW(T$7:T$36)-ROW(T$7)+1)/(T$7:T$36<>""),ROWS(Y$7:Y8))),"") -> High precision measuring tool | AA8: =IFERROR(INDEX(U$7:U$36,_xlfn.AGGREGATE(15,6,(ROW(U$7:U$36)-ROW(U$7)+1)/(U$7:U$36<>""),ROWS(Z$7:Z8))),"") -> 
A9: 3 | B9: =IF('Pareto Chart'!L10="","",'Pareto Chart'!C10) -> Over and under filling of liquids | F9: High precision measuring tool | N9: D | O9: H | P9: C | T9: =IF($P9:P$14="C",$F9,"") -> High precision measuring tool | X9: =IFERROR(INDEX(R$7:R$36,_xlfn.AGGREGATE(15,6,(ROW(R$7:R$36)-ROW(R$7)+1)/(R$7:R$36<>""),ROWS(W$7:W9))),"") ->  | Y9: =IFERROR(INDEX(S$7:S$36,_xlfn.AGGREGATE(15,6,(ROW(S$7:S$36)-ROW(S$7)+1)/(S$7:S$36<>""),ROWS(X$7:X9))),"") -> Define sealing procedure | Z9: =IFERROR(INDEX(T$7:T$36,_xlfn.AGGREGATE(15,6,(ROW(T$7:T$36)-ROW(T$7)+1)/(T$7:T$36<>""),ROWS(Y$7:Y9))),"") -> Add wheels on equipments | AA9: =IFERROR(INDEX(U$7:U$36,_xlfn.AGGREGATE(15,6,(ROW(U$7:U$36)-ROW(U$7)+1)/(U$7:U$36<>""),ROWS(Z$7:Z9))),"") -> 
A10: 4 | B10: =IF('Pareto Chart'!L11="","",'Pareto Chart'!C11) -> Liquid filling | F10: Be serious in work | N10: E | O10: H | P10: I | S10: Be serious in work | T10: =IF($P10:P$14="C",$F10,"") ->  | W10: =IFERROR(INDEX($R$7:$R$14,_xlfn.AGGREGATE(15,6,(ROW($R$7:$R$14)-ROW($R$7)+1)/($R$7:$R$14<>""),ROWS(W$7:W10))),"") ->  | X10: =IFERROR(INDEX(R$7:R$36,_xlfn.AGGREGATE(15,6,(ROW(R$7:R$36)-ROW(R$7)+1)/(R$7:R$36<>""),ROWS(W$7:W10))),"") ->  | Y10: =IFERROR(INDEX(S$7:S$36,_xlfn.AGGREGATE(15,6,(ROW(S$7:S$36)-ROW(S$7)+1)/(S$7:S$36<>""),ROWS(X$7:X10))),"") -> Change layout/Bring closer | Z10: =IFERROR(INDEX(T$7:T$36,_xlfn.AGGREGATE(15,6,(ROW(T$7:T$36)-ROW(T$7)+1)/(T$7:T$36<>""),ROWS(Y$7:Y10))),"") -> Add wheels on equipments | AA10: =IFERROR(INDEX(U$7:U$36,_xlfn.AGGREGATE(15,6,(ROW(U$7:U$36)-ROW(U$7)+1)/(U$7:U$36<>""),ROWS(Z$7:Z10))),"") -> 
A11: 5 | B11: =IF('Pareto Chart'!L12="","",'Pareto Chart'!C12) -> Caps not sealed perfectly | F11: Use boxes for transport | N11: E | O11: L | P11: P | T11: =IF($P11:P$14="C",$F11,"") ->  | W11: =IFERROR(INDEX($R$7:$R$14,_xlfn.AGGREGATE(15,6,(ROW($R$7:$R$14)-ROW($R$7)+1)/($R$7:$R$14<>""),ROWS(W$7:W11))),"") ->  | X11: =IFERROR(INDEX(R$7:R$36,_xlfn.AGGREGATE(15,6,(ROW(R$7:R$36)-ROW(R$7)+1)/(R$7:R$36<>""),ROWS(W$7:W11))),"") ->  | Y11: =IFERROR(INDEX(S$7:S$36,_xlfn.AGGREGATE(15,6,(ROW(S$7:S$36)-ROW(S$7)+1)/(S$7:S$36<>""),ROWS(X$7:X11))),"") ->  | Z11: =IFERROR(INDEX(T$7:T$36,_xlfn.AGGREGATE(15,6,(ROW(T$7:T$36)-ROW(T$7)+1)/(T$7:T$36<>""),ROWS(Y$7:Y11))),"") ->  | AA11: =IFERROR(INDEX(U$7:U$36,_xlfn.AGGREGATE(15,6,(ROW(U$7:U$36)-ROW(U$7)+1)/(U$7:U$36<>""),ROWS(Z$7:Z11))),"") -> 
A12: 6 | B12: =IF('Pareto Chart'!L13="","",'Pareto Chart'!C13) -> Filling machine | F12: Use dispenser/Taps | N12: E | O12: L | P12: P | T12: =IF($P12:P$14="C",$F12,"") ->  | W12: =IFERROR(INDEX($R$7:$R$14,_xlfn.AGGREGATE(15,6,(ROW($R$7:$R$14)-ROW($R$7)+1)/($R$7:$R$14<>""),ROWS(W$7:W12))),"") ->  | X12: =IFERROR(INDEX(R$7:R$36,_xlfn.AGGREGATE(15,6,(ROW(R$7:R$36)-ROW(R$7)+1)/(R$7:R$36<>""),ROWS(W$7:W12))),"") ->  | Y12: =IFERROR(INDEX(S$7:S$36,_xlfn.AGGREGATE(15,6,(ROW(S$7:S$36)-ROW(S$7)+1)/(S$7:S$36<>""),ROWS(X$7:X12))),"") ->  | Z12: =IFERROR(INDEX(T$7:T$36,_xlfn.AGGREGATE(15,6,(ROW(T$7:T$36)-ROW(T$7)+1)/(T$7:T$36<>""),ROWS(Y$7:Y12))),"") ->  | AA12: =IFERROR(INDEX(U$7:U$36,_xlfn.AGGREGATE(15,6,(ROW(U$7:U$36)-ROW(U$7)+1)/(U$7:U$36<>""),ROWS(Z$7:Z12))),"") -> 
A13: 7 | B13: =IF('Pareto Chart'!L14="","",'Pareto Chart'!C14) -> Experience of an operator | F13: Use support for bottles | N13: E | O13: L | P13: P | T13: =IF($P13:P$14="C",$F13,"") ->  | W13: =IFERROR(INDEX($R$7:$R$14,_xlfn.AGGREGATE(15,6,(ROW($R$7:$R$14)-ROW($R$7)+1)/($R$7:$R$14<>""),ROWS(W$7:W13))),"") ->  | X13: =IFERROR(INDEX(R$7:R$36,_xlfn.AGGREGATE(15,6,(ROW(R$7:R$36)-ROW(R$7)+1)/(R$7:R$36<>""),ROWS(W$7:W13))),"") ->  | Y13: =IFERROR(INDEX(S$7:S$36,_xlfn.AGGREGATE(15,6,(ROW(S$7:S$36)-ROW(S$7)+1)/(S$7:S$36<>""),ROWS(X$7:X13))),"") ->  | Z13: =IFERROR(INDEX(T$7:T$36,_xlfn.AGGREGATE(15,6,(ROW(T$7:T$36)-ROW(T$7)+1)/(T$7:T$36<>""),ROWS(Y$7:Y13))),"") ->  | AA13: =IFERROR(INDEX(U$7:U$36,_xlfn.AGGREGATE(15,6,(ROW(U$7:U$36)-ROW(U$7)+1)/(U$7:U$36<>""),ROWS(Z$7:Z13))),"") -> 
A14: 8 | B14: =IF('Pareto Chart'!L15="","",'Pareto Chart'!C15) -> Measuring error by operator | F14: Change bottle type | N14: D | O14: L | P14: K | T14: =IF($P14:P$14="C",$F14,"") ->  | U14: Change bottle type | W14: =IFERROR(INDEX($R$7:$R$14,_xlfn.AGGREGATE(15,6,(ROW($R$7:$R$14)-ROW($R$7)+1)/($R$7:$R$14<>""),ROWS(W$7:W14))),"") ->  | X14: =IFERROR(INDEX(R$7:R$36,_xlfn.AGGREGATE(15,6,(ROW(R$7:R$36)-ROW(R$7)+1)/(R$7:R$36<>""),ROWS(W$7:W14))),"") ->  | Y14: =IFERROR(INDEX(S$7:S$36,_xlfn.AGGREGATE(15,6,(ROW(S$7:S$36)-ROW(S$7)+1)/(S$7:S$36<>""),ROWS(X$7:X14))),"") ->  | Z14: =IFERROR(INDEX(T$7:T$36,_xlfn.AGGREGATE(15,6,(ROW(T$7:T$36)-ROW(T$7)+1)/(T$7:T$36<>""),ROWS(Y$7:Y14))),"") ->  | AA14: =IFERROR(INDEX(U$7:U$36,_xlfn.AGGREGATE(15,6,(ROW(U$7:U$36)-ROW(U$7)+1)/(U$7:U$36<>""),ROWS(Z$7:Z14))),"") -> 
B15: =IF('Pareto Chart'!L16="","",'Pareto Chart'!C16) ->  | F15: Define sealing procedure | N15: E | O15: H | P15: I | S15: Define sealing procedure | T15: =IF($P$14:P15="C",$F15,"") ->  | X15: =IFERROR(INDEX(R$7:R$36,_xlfn.AGGREGATE(15,6,(ROW(R$7:R$36)-ROW(R$7)+1)/(R$7:R$36<>""),ROWS(W$7:W15))),"") ->  | Y15: =IFERROR(INDEX(S$7:S$36,_xlfn.AGGREGATE(15,6,(ROW(S$7:S$36)-ROW(S$7)+1)/(S$7:S$36<>""),ROWS(X$7:X15))),"") ->  | Z15: =IFERROR(INDEX(T$7:T$36,_xlfn.AGGREGATE(15,6,(ROW(T$7:T$36)-ROW(T$7)+1)/(T$7:T$36<>""),ROWS(Y$7:Y15))),"") ->  | AA15: =IFERROR(INDEX(U$7:U$36,_xlfn.AGGREGATE(15,6,(ROW(U$7:U$36)-ROW(U$7)+1)/(U$7:U$36<>""),ROWS(Z$7:Z15))),"") -> 
B16: =IF('Pareto Chart'!L17="","",'Pareto Chart'!C17) ->  | F16: Add wheels on equipments | N16: D | O16: H | P16: C | T16: =IF($P$14:P16="C",$F16,"") -> Add wheels on equipments | X16: =IFERROR(INDEX(R$7:R$36,_xlfn.AGGREGATE(15,6,(ROW(R$7:R$36)-ROW(R$7)+1)/(R$7:R$36<>""),ROWS(W$7:W16))),"") ->  | Y16: =IFERROR(INDEX(S$7:S$36,_xlfn.AGGREGATE(15,6,(ROW(S$7:S$36)-ROW(S$7)+1)/(S$7:S$36<>""),ROWS(X$7:X16))),"") ->  | Z16: =IFERROR(INDEX(T$7:T$36,_xlfn.AGGREGATE(15,6,(ROW(T$7:T$36)-ROW(T$7)+1)/(T$7:T$36<>""),ROWS(Y$7:Y16))),"") ->  | AA16: =IFERROR(INDEX(U$7:U$36,_xlfn.AGGREGATE(15,6,(ROW(U$7:U$36)-ROW(U$7)+1)/(U$7:U$36<>""),ROWS(Z$7:Z16))),"") -> 
B17: =IF('Pareto Chart'!L18="","",'Pareto Chart'!C18) ->  | F17: Add wheels on equipments | N17: D | O17: H | P17: C | T17: =IF($P$14:P17="C",$F17,"") -> Add wheels on equipments | X17: =IFERROR(INDEX(R$7:R$36,_xlfn.AGGREGATE(15,6,(ROW(R$7:R$36)-ROW(R$7)+1)/(R$7:R$36<>""),ROWS(W$7:W17))),"") ->  | Y17: =IFERROR(INDEX(S$7:S$36,_xlfn.AGGREGATE(15,6,(ROW(S$7:S$36)-ROW(S$7)+1)/(S$7:S$36<>""),ROWS(X$7:X17))),"") ->  | Z17: =IFERROR(INDEX(T$7:T$36,_xlfn.AGGREGATE(15,6,(ROW(T$7:T$36)-ROW(T$7)+1)/(T$7:T$36<>""),ROWS(Y$7:Y17))),"") ->  | AA17: =IFERROR(INDEX(U$7:U$36,_xlfn.AGGREGATE(15,6,(ROW(U$7:U$36)-ROW(U$7)+1)/(U$7:U$36<>""),ROWS(Z$7:Z17))),"") -> 
B18: =IF('Pareto Chart'!L19="","",'Pareto Chart'!C19) ->  | F18: Change layout/Bring closer | N18: E | O18: H | P18: I | S18: Change layout/Bring closer | T18: =IF($P$14:P18="C",$F18,"") ->  | X18: =IFERROR(INDEX(R$7:R$36,_xlfn.AGGREGATE(15,6,(ROW(R$7:R$36)-ROW(R$7)+1)/(R$7:R$36<>""),ROWS(W$7:W18))),"") ->  | Y18: =IFERROR(INDEX(S$7:S$36,_xlfn.AGGREGATE(15,6,(ROW(S$7:S$36)-ROW(S$7)+1)/(S$7:S$36<>""),ROWS(X$7:X18))),"") ->  | Z18: =IFERROR(INDEX(T$7:T$36,_xlfn.AGGREGATE(15,6,(ROW(T$7:T$36)-ROW(T$7)+1)/(T$7:T$36<>""),ROWS(Y$7:Y18))),"") ->  | AA18: =IFERROR(INDEX(U$7:U$36,_xlfn.AGGREGATE(15,6,(ROW(U$7:U$36)-ROW(U$7)+1)/(U$7:U$36<>""),ROWS(Z$7:Z18))),"") -> 
B19: =IF('Pareto Chart'!L20="","",'Pareto Chart'!C20) ->  | T19: =IF($P$14:P19="C",$F19,"") ->  | X19: =IFERROR(INDEX(R$7:R$36,_xlfn.AGGREGATE(15,6,(ROW(R$7:R$36)-ROW(R$7)+1)/(R$7:R$36<>""),ROWS(W$7:W19))),"") ->  | Y19: =IFERROR(INDEX(S$7:S$36,_xlfn.AGGREGATE(15,6,(ROW(S$7:S$36)-ROW(S$7)+1)/(S$7:S$36<>""),ROWS(X$7:X19))),"") ->  | Z19: =IFERROR(INDEX(T$7:T$36,_xlfn.AGGREGATE(15,6,(ROW(T$7:T$36)-ROW(T$7)+1)/(T$7:T$36<>""),ROWS(Y$7:Y19))),"") ->  | AA19: =IFERROR(INDEX(U$7:U$36,_xlfn.AGGREGATE(15,6,(ROW(U$7:U$36)-ROW(U$7)+1)/(U$7:U$36<>""),ROWS(Z$7:Z19))),"") -> 
B20: =IF('Pareto Chart'!L21="","",'Pareto Chart'!C21) ->  | T20: =IF($P$14:P20="C",$F20,"") ->  | X20: =IFERROR(INDEX(R$7:R$36,_xlfn.AGGREGATE(15,6,(ROW(R$7:R$36)-ROW(R$7)+1)/(R$7:R$36<>""),ROWS(W$7:W20))),"") ->  | Y20: =IFERROR(INDEX(S$7:S$36,_xlfn.AGGREGATE(15,6,(ROW(S$7:S$36)-ROW(S$7)+1)/(S$7:S$36<>""),ROWS(X$7:X20))),"") ->  | Z20: =IFERROR(INDEX(T$7:T$36,_xlfn.AGGREGATE(15,6,(ROW(T$7:T$36)-ROW(T$7)+1)/(T$7:T$36<>""),ROWS(Y$7:Y20))),"") ->  | AA20: =IFERROR(INDEX(U$7:U$36,_xlfn.AGGREGATE(15,6,(ROW(U$7:U$36)-ROW(U$7)+1)/(U$7:U$36<>""),ROWS(Z$7:Z20))),"") -> 
B21: =IF('Pareto Chart'!L22="","",'Pareto Chart'!C22) ->  | T21: =IF($P$14:P21="C",$F21,"") ->  | X21: =IFERROR(INDEX(R$7:R$36,_xlfn.AGGREGATE(15,6,(ROW(R$7:R$36)-ROW(R$7)+1)/(R$7:R$36<>""),ROWS(W$7:W21))),"") ->  | Y21: =IFERROR(INDEX(S$7:S$36,_xlfn.AGGREGATE(15,6,(ROW(S$7:S$36)-ROW(S$7)+1)/(S$7:S$36<>""),ROWS(X$7:X21))),"") ->  | Z21: =IFERROR(INDEX(T$7:T$36,_xlfn.AGGREGATE(15,6,(ROW(T$7:T$36)-ROW(T$7)+1)/(T$7:T$36<>""),ROWS(Y$7:Y21))),"") ->  | AA21: =IFERROR(INDEX(U$7:U$36,_xlfn.AGGREGATE(15,6,(ROW(U$7:U$36)-ROW(U$7)+1)/(U$7:U$36<>""),ROWS(Z$7:Z21))),"") -> 
B22: =IF('Pareto Chart'!L23="","",'Pareto Chart'!C23) ->  | T22: =IF($P$14:P22="C",$F22,"") ->  | X22: =IFERROR(INDEX(R$7:R$36,_xlfn.AGGREGATE(15,6,(ROW(R$7:R$36)-ROW(R$7)+1)/(R$7:R$36<>""),ROWS(W$7:W22))),"") ->  | Y22: =IFERROR(INDEX(S$7:S$36,_xlfn.AGGREGATE(15,6,(ROW(S$7:S$36)-ROW(S$7)+1)/(S$7:S$36<>""),ROWS(X$7:X22))),"") ->  | Z22: =IFERROR(INDEX(T$7:T$36,_xlfn.AGGREGATE(15,6,(ROW(T$7:T$36)-ROW(T$7)+1)/(T$7:T$36<>""),ROWS(Y$7:Y22))),"") ->  | AA22: =IFERROR(INDEX(U$7:U$36,_xlfn.AGGREGATE(15,6,(ROW(U$7:U$36)-ROW(U$7)+1)/(U$7:U$36<>""),ROWS(Z$7:Z22))),"") -> 
B23: =IF('Pareto Chart'!L24="","",'Pareto Chart'!C24) ->  | T23: =IF($P$14:P23="C",$F23,"") ->  | X23: =IFERROR(INDEX(R$7:R$36,_xlfn.AGGREGATE(15,6,(ROW(R$7:R$36)-ROW(R$7)+1)/(R$7:R$36<>""),ROWS(W$7:W23))),"") ->  | Y23: =IFERROR(INDEX(S$7:S$36,_xlfn.AGGREGATE(15,6,(ROW(S$7:S$36)-ROW(S$7)+1)/(S$7:S$36<>""),ROWS(X$7:X23))),"") ->  | Z23: =IFERROR(INDEX(T$7:T$36,_xlfn.AGGREGATE(15,6,(ROW(T$7:T$36)-ROW(T$7)+1)/(T$7:T$36<>""),ROWS(Y$7:Y23))),"") ->  | AA23: =IFERROR(INDEX(U$7:U$36,_xlfn.AGGREGATE(15,6,(ROW(U$7:U$36)-ROW(U$7)+1)/(U$7:U$36<>""),ROWS(Z$7:Z23))),"") -> 
B24: =IF('Pareto Chart'!L25="","",'Pareto Chart'!C25) ->  | T24: =IF($P$14:P24="C",$F24,"") ->  | X24: =IFERROR(INDEX(R$7:R$36,_xlfn.AGGREGATE(15,6,(ROW(R$7:R$36)-ROW(R$7)+1)/(R$7:R$36<>""),ROWS(W$7:W24))),"") ->  | Y24: =IFERROR(INDEX(S$7:S$36,_xlfn.AGGREGATE(15,6,(ROW(S$7:S$36)-ROW(S$7)+1)/(S$7:S$36<>""),ROWS(X$7:X24))),"") ->  | Z24: =IFERROR(INDEX(T$7:T$36,_xlfn.AGGREGATE(15,6,(ROW(T$7:T$36)-ROW(T$7)+1)/(T$7:T$36<>""),ROWS(Y$7:Y24))),"") ->  | AA24: =IFERROR(INDEX(U$7:U$36,_xlfn.AGGREGATE(15,6,(ROW(U$7:U$36)-ROW(U$7)+1)/(U$7:U$36<>""),ROWS(Z$7:Z24))),"") -> 
B25: =IF('Pareto Chart'!L26="","",'Pareto Chart'!C26) ->  | T25: =IF($P$14:P25="C",$F25,"") ->  | X25: =IFERROR(INDEX(R$7:R$36,_xlfn.AGGREGATE(15,6,(ROW(R$7:R$36)-ROW(R$7)+1)/(R$7:R$36<>""),ROWS(W$7:W25))),"") ->  | Y25: =IFERROR(INDEX(S$7:S$36,_xlfn.AGGREGATE(15,6,(ROW(S$7:S$36)-ROW(S$7)+1)/(S$7:S$36<>""),ROWS(X$7:X25))),"") ->  | Z25: =IFERROR(INDEX(T$7:T$36,_xlfn.AGGREGATE(15,6,(ROW(T$7:T$36)-ROW(T$7)+1)/(T$7:T$36<>""),ROWS(Y$7:Y25))),"") ->  | AA25: =IFERROR(INDEX(U$7:U$36,_xlfn.AGGREGATE(15,6,(ROW(U$7:U$36)-ROW(U$7)+1)/(U$7:U$36<>""),ROWS(Z$7:Z25))),"") -> 
B26: =IF('Pareto Chart'!L27="","",'Pareto Chart'!C27) ->  | T26: =IF($P$14:P26="C",$F26,"") ->  | X26: =IFERROR(INDEX(R$7:R$36,_xlfn.AGGREGATE(15,6,(ROW(R$7:R$36)-ROW(R$7)+1)/(R$7:R$36<>""),ROWS(W$7:W26))),"") ->  | Y26: =IFERROR(INDEX(S$7:S$36,_xlfn.AGGREGATE(15,6,(ROW(S$7:S$36)-ROW(S$7)+1)/(S$7:S$36<>""),ROWS(X$7:X26))),"") ->  | Z26: =IFERROR(INDEX(T$7:T$36,_xlfn.AGGREGATE(15,6,(ROW(T$7:T$36)-ROW(T$7)+1)/(T$7:T$36<>""),ROWS(Y$7:Y26))),"") ->  | AA26: =IFERROR(INDEX(U$7:U$36,_xlfn.AGGREGATE(15,6,(ROW(U$7:U$36)-ROW(U$7)+1)/(U$7:U$36<>""),ROWS(Z$7:Z26))),"") -> 
B27: =IF('Pareto Chart'!L28="","",'Pareto Chart'!C28) ->  | T27: =IF($P$14:P27="C",$F27,"") ->  | X27: =IFERROR(INDEX(R$7:R$36,_xlfn.AGGREGATE(15,6,(ROW(R$7:R$36)-ROW(R$7)+1)/(R$7:R$36<>""),ROWS(W$7:W27))),"") ->  | Y27: =IFERROR(INDEX(S$7:S$36,_xlfn.AGGREGATE(15,6,(ROW(S$7:S$36)-ROW(S$7)+1)/(S$7:S$36<>""),ROWS(X$7:X27))),"") ->  | Z27: =IFERROR(INDEX(T$7:T$36,_xlfn.AGGREGATE(15,6,(ROW(T$7:T$36)-ROW(T$7)+1)/(T$7:T$36<>""),ROWS(Y$7:Y27))),"") ->  | AA27: =IFERROR(INDEX(U$7:U$36,_xlfn.AGGREGATE(15,6,(ROW(U$7:U$36)-ROW(U$7)+1)/(U$7:U$36<>""),ROWS(Z$7:Z27))),"") -> 
B28: =IF('Pareto Chart'!L29="","",'Pareto Chart'!C29) ->  | T28: =IF($P$14:P28="C",$F28,"") ->  | X28: =IFERROR(INDEX(R$7:R$36,_xlfn.AGGREGATE(15,6,(ROW(R$7:R$36)-ROW(R$7)+1)/(R$7:R$36<>""),ROWS(W$7:W28))),"") ->  | Y28: =IFERROR(INDEX(S$7:S$36,_xlfn.AGGREGATE(15,6,(ROW(S$7:S$36)-ROW(S$7)+1)/(S$7:S$36<>""),ROWS(X$7:X28))),"") ->  | Z28: =IFERROR(INDEX(T$7:T$36,_xlfn.AGGREGATE(15,6,(ROW(T$7:T$36)-ROW(T$7)+1)/(T$7:T$36<>""),ROWS(Y$7:Y28))),"") ->  | AA28: =IFERROR(INDEX(U$7:U$36,_xlfn.AGGREGATE(15,6,(ROW(U$7:U$36)-ROW(U$7)+1)/(U$7:U$36<>""),ROWS(Z$7:Z28))),"") -> 
B29: =IF('Pareto Chart'!L30="","",'Pareto Chart'!C30) ->  | T29: =IF($P$14:P29="C",$F29,"") ->  | X29: =IFERROR(INDEX(R$7:R$36,_xlfn.AGGREGATE(15,6,(ROW(R$7:R$36)-ROW(R$7)+1)/(R$7:R$36<>""),ROWS(W$7:W29))),"") ->  | Y29: =IFERROR(INDEX(S$7:S$36,_xlfn.AGGREGATE(15,6,(ROW(S$7:S$36)-ROW(S$7)+1)/(S$7:S$36<>""),ROWS(X$7:X29))),"") ->  | Z29: =IFERROR(INDEX(T$7:T$36,_xlfn.AGGREGATE(15,6,(ROW(T$7:T$36)-ROW(T$7)+1)/(T$7:T$36<>""),ROWS(Y$7:Y29))),"") ->  | AA29: =IFERROR(INDEX(U$7:U$36,_xlfn.AGGREGATE(15,6,(ROW(U$7:U$36)-ROW(U$7)+1)/(U$7:U$36<>""),ROWS(Z$7:Z29))),"") -> 
B30: =IF('Pareto Chart'!L31="","",'Pareto Chart'!C31) ->  | T30: =IF($P$14:P30="C",$F30,"") ->  | X30: =IFERROR(INDEX(R$7:R$36,_xlfn.AGGREGATE(15,6,(ROW(R$7:R$36)-ROW(R$7)+1)/(R$7:R$36<>""),ROWS(W$7:W30))),"") ->  | Y30: =IFERROR(INDEX(S$7:S$36,_xlfn.AGGREGATE(15,6,(ROW(S$7:S$36)-ROW(S$7)+1)/(S$7:S$36<>""),ROWS(X$7:X30))),"") ->  | Z30: =IFERROR(INDEX(T$7:T$36,_xlfn.AGGREGATE(15,6,(ROW(T$7:T$36)-ROW(T$7)+1)/(T$7:T$36<>""),ROWS(Y$7:Y30))),"") ->  | AA30: =IFERROR(INDEX(U$7:U$36,_xlfn.AGGREGATE(15,6,(ROW(U$7:U$36)-ROW(U$7)+1)/(U$7:U$36<>""),ROWS(Z$7:Z30))),"") -> 
B31: =IF('Pareto Chart'!L32="","",'Pareto Chart'!C32) ->  | T31: =IF($P$14:P31="C",$F31,"") ->  | X31: =IFERROR(INDEX(R$7:R$36,_xlfn.AGGREGATE(15,6,(ROW(R$7:R$36)-ROW(R$7)+1)/(R$7:R$36<>""),ROWS(W$7:W31))),"") ->  | Y31: =IFERROR(INDEX(S$7:S$36,_xlfn.AGGREGATE(15,6,(ROW(S$7:S$36)-ROW(S$7)+1)/(S$7:S$36<>""),ROWS(X$7:X31))),"") ->  | Z31: =IFERROR(INDEX(T$7:T$36,_xlfn.AGGREGATE(15,6,(ROW(T$7:T$36)-ROW(T$7)+1)/(T$7:T$36<>""),ROWS(Y$7:Y31))),"") ->  | AA31: =IFERROR(INDEX(U$7:U$36,_xlfn.AGGREGATE(15,6,(ROW(U$7:U$36)-ROW(U$7)+1)/(U$7:U$36<>""),ROWS(Z$7:Z31))),"") -> 
B32: =IF('Pareto Chart'!L33="","",'Pareto Chart'!C33) ->  | T32: =IF($P$14:P32="C",$F32,"") ->  | X32: =IFERROR(INDEX(R$7:R$36,_xlfn.AGGREGATE(15,6,(ROW(R$7:R$36)-ROW(R$7)+1)/(R$7:R$36<>""),ROWS(W$7:W32))),"") ->  | Y32: =IFERROR(INDEX(S$7:S$36,_xlfn.AGGREGATE(15,6,(ROW(S$7:S$36)-ROW(S$7)+1)/(S$7:S$36<>""),ROWS(X$7:X32))),"") ->  | Z32: =IFERROR(INDEX(T$7:T$36,_xlfn.AGGREGATE(15,6,(ROW(T$7:T$36)-ROW(T$7)+1)/(T$7:T$36<>""),ROWS(Y$7:Y32))),"") ->  | AA32: =IFERROR(INDEX(U$7:U$36,_xlfn.AGGREGATE(15,6,(ROW(U$7:U$36)-ROW(U$7)+1)/(U$7:U$36<>""),ROWS(Z$7:Z32))),"") -> 
B33: =IF('Pareto Chart'!L34="","",'Pareto Chart'!C34) ->  | T33: =IF($P$14:P33="C",$F33,"") ->  | X33: =IFERROR(INDEX(R$7:R$36,_xlfn.AGGREGATE(15,6,(ROW(R$7:R$36)-ROW(R$7)+1)/(R$7:R$36<>""),ROWS(W$7:W33))),"") ->  | Y33: =IFERROR(INDEX(S$7:S$36,_xlfn.AGGREGATE(15,6,(ROW(S$7:S$36)-ROW(S$7)+1)/(S$7:S$36<>""),ROWS(X$7:X33))),"") ->  | Z33: =IFERROR(INDEX(T$7:T$36,_xlfn.AGGREGATE(15,6,(ROW(T$7:T$36)-ROW(T$7)+1)/(T$7:T$36<>""),ROWS(Y$7:Y33))),"") ->  | AA33: =IFERROR(INDEX(U$7:U$36,_xlfn.AGGREGATE(15,6,(ROW(U$7:U$36)-ROW(U$7)+1)/(U$7:U$36<>""),ROWS(Z$7:Z33))),"") -> 
B34: =IF('Pareto Chart'!L35="","",'Pareto Chart'!C35) ->  | T34: =IF($P$14:P34="C",$F34,"") ->  | X34: =IFERROR(INDEX(R$7:R$36,_xlfn.AGGREGATE(15,6,(ROW(R$7:R$36)-ROW(R$7)+1)/(R$7:R$36<>""),ROWS(W$7:W34))),"") ->  | Y34: =IFERROR(INDEX(S$7:S$36,_xlfn.AGGREGATE(15,6,(ROW(S$7:S$36)-ROW(S$7)+1)/(S$7:S$36<>""),ROWS(X$7:X34))),"") ->  | Z34: =IFERROR(INDEX(T$7:T$36,_xlfn.AGGREGATE(15,6,(ROW(T$7:T$36)-ROW(T$7)+1)/(T$7:T$36<>""),ROWS(Y$7:Y34))),"") ->  | AA34: =IFERROR(INDEX(U$7:U$36,_xlfn.AGGREGATE(15,6,(ROW(U$7:U$36)-ROW(U$7)+1)/(U$7:U$36<>""),ROWS(Z$7:Z34))),"") -> 
B35: =IF('Pareto Chart'!L36="","",'Pareto Chart'!C36) ->  | T35: =IF($P$14:P35="C",$F35,"") ->  | X35: =IFERROR(INDEX(R$7:R$36,_xlfn.AGGREGATE(15,6,(ROW(R$7:R$36)-ROW(R$7)+1)/(R$7:R$36<>""),ROWS(W$7:W35))),"") ->  | Y35: =IFERROR(INDEX(S$7:S$36,_xlfn.AGGREGATE(15,6,(ROW(S$7:S$36)-ROW(S$7)+1)/(S$7:S$36<>""),ROWS(X$7:X35))),"") ->  | Z35: =IFERROR(INDEX(T$7:T$36,_xlfn.AGGREGATE(15,6,(ROW(T$7:T$36)-ROW(T$7)+1)/(T$7:T$36<>""),ROWS(Y$7:Y35))),"") ->  | AA35: =IFERROR(INDEX(U$7:U$36,_xlfn.AGGREGATE(15,6,(ROW(U$7:U$36)-ROW(U$7)+1)/(U$7:U$36<>""),ROWS(Z$7:Z35))),"") -> 
B36: =IF('Pareto Chart'!L37="","",'Pareto Chart'!C37) ->  | T36: =IF($P$14:P36="C",$F36,"") ->  | X36: =IFERROR(INDEX(R$7:R$36,_xlfn.AGGREGATE(15,6,(ROW(R$7:R$36)-ROW(R$7)+1)/(R$7:R$36<>""),ROWS(W$7:W36))),"") ->  | Y36: =IFERROR(INDEX(S$7:S$36,_xlfn.AGGREGATE(15,6,(ROW(S$7:S$36)-ROW(S$7)+1)/(S$7:S$36<>""),ROWS(X$7:X36))),"") -> 
B38: ='Fishbone Diagram'!$Y39 -> 
